bitfinex-derivatives/quotes_SOLF0:USTF0_20241226
["timestamp","ask_amount","ask_price","bid_price","bid_amount"]
[1735179529390,14.3776513,197.9,197.77,11.0576513]
[1735179529694,2.5298,197.87,197.82,2.5302]
[1735179532090,3.154,197.91,197.8,11.0576513]
[1735179532590,3.154,197.91,197.78,11.0576513]
[1735179533191,2.5296,197.88,197.78,11.0576513]
[1735179533394,3.154,197.91,197.78,11.0576513]
[1735179534402,2.5297,197.87,197.82,2.5302]
[1735179536495,2.5294,197.9,197.81,11.0576513]
[1735179536998,3.154,197.91,197.81,11.0576513]
[1735179538496,5.6832,197.91,197.81,11.0576513]
[1735179539199,3.154,197.91,197.81,11.0576513]
[1735179540600,2.5295,197.88,197.83,2.5302]
[1735179540796,3.154,197.91,197.81,11.0576513]
[1735179541303,0.8290849,197.9,197.81,11.0576513]
[1735179542192,3.154,197.91,197.81,11.0576513]
[1735179542396,3.154,197.91,197.8,2.5304]
[1735179542397,0.82911529,197.9,197.8,2.5304]
[1735179542602,0.82911529,197.9,197.78,11.0576513]
[1735179542603,0.82911529,197.9,197.83,2.5302]
[1735179542802,2.5297,197.87,197.78,11.0576513]
[1735179543500,2.5297,197.87,197.8,2.5305]
[1735179544604,2.5301,197.84,197.78,13.5883513]
[1735179545295,3.154,197.91,197.71,0.5171]
[1735179545296,2.5308,197.79,197.75,11.0576513]
[1735179545896,2.5309,197.78,197.75,11.0576513]
[1735179547302,2.5308,197.78,197.75,11.0576513]
[1735179549107,1.5848,197.83,197.75,11.0576513]
[1735179549301,1.5435,197.82,197.75,11.0576513]
[1735179550503,2.5309,197.78,197.75,11.0576513]
[1735179552310,2.5309,197.78,197.76,7.07483536]
[1735179552708,2.5307,197.8,197.76,7.07483536]
[1735179554609,2.5304,197.81,197.77,2.5309]
[1735179554812,2.5304,197.81,197.78,7.07483536]
[1735179555113,2.5304,197.81,197.7,4.8243]
[1735179555114,21.01491992,197.83,197.8,7.07483536]
[1735179555310,21.01491992,197.83,197.82,9.60513536]
[1735179556313,21.01491992,197.83,197.81,7.07483536]
[1735179556314,2.5302,197.83,197.81,7.07483536]
[1735179556515,7.07483536,197.89,197.81,7.07483536]
[1735179557212,2.5301,197.84,197.81,7.07483536]
[1735179557614,2.5299,197.86,197.81,9.60523536]
[1735179558210,2.5296,197.88,197.84,2.53]
[1735179560617,2.5299,197.86,197.83,7.07483536]
[1735179562020,2.5296,197.88,197.84,2.5299]
[1735179562720,2.5296,197.88,197.85,7.07483536]
[1735179563413,5.5999,197.9,197.86,2.5297]
[1735179563624,3.0705,197.9,197.86,2.5297]
[1735179564219,3.0705,197.9,197.87,7.07483536]
[1735179566216,2.5294,197.89,197.87,7.07483536]
[1735179566416,3.0705,197.9,197.85,7.07483536]
[1735179567722,2.5294,197.9,197.87,7.07483536]
[1735179567917,29.61055528,197.94,197.87,7.07483536]
[1735179568721,8.59563536,197.94,197.87,7.07483536]
[1735179569820,2.5292,197.91,197.87,7.07483536]
[1735179570422,8.59563536,197.94,197.87,7.07483536]
[1735179570925,1.5208,197.94,197.85,7.07483536]
[1735179571218,7.07483536,197.91,197.78,1.5374]
[1735179571423,7.07483536,197.91,197.69,5.0639]
[1735179571424,7.07483536,197.89,197.83,7.07483536]
[1735179571620,3.32,197.9,197.83,7.07483536]
[1735179571821,10.39483536,197.9,197.83,7.07483536]
[1735179572016,2.53,197.85,197.83,7.07483536]
[1735179572323,2.53,197.85,197.8,2.5305]
[1735179572520,2.53,197.85,197.84,7.07483536]
[1735179572828,10.39483536,197.9,197.84,7.07483536]
[1735179572829,3.32,197.9,197.84,7.07483536]
[1735179573020,23.54421992,197.91,197.88,7.07483536]
[1735179573220,23.54421992,197.91,197.9,7.07483536]
[1735179573423,23.54421992,197.91,197.88,7.07483536]
[1735179573625,21.01491992,197.91,197.85,7.07483536]
[1735179573931,21.01491992,197.91,197.82,3.32]
[1735179573932,22.53571992,197.94,197.89,7.07483536]
[1735179574954,1.5208,197.94,197.89,7.07483536]
[1735179575428,8.59563536,197.94,197.82,3.32]
[1735179575622,8.59563536,197.94,197.86,7.07483536]
[1735179577126,33.93483245,197.93,197.9,7.07483536]
[1735179578228,1.5208,197.94,197.9,7.07483536]
[1735179578529,2.5288,197.93,197.9,7.07483536]
[1735179579435,2.5289,197.92,197.89,7.07483536]
[1735179585632,7.01188729,197.96,197.91,7.07483536]
[1735179585838,2.5286,197.95,197.91,9.60383536]
[1735179587442,2.5287,197.94,197.91,7.07483536]
[1735179587640,28.02680721,197.97,197.89,7.07483536]
[1735179587641,35.10164257,197.97,197.89,7.07483536]
[1735179588046,2.5287,197.94,197.89,9.60403536]
[1735179588741,14.08672265,197.97,197.89,9.60403536]
[1735179588943,2.5288,197.93,197.89,9.60403536]
[1735179590042,2.5288,197.93,197.89,7.07483536]
[1735179590243,2.5288,197.93,197.9,2.5291]
[1735179590437,28.02680721,197.96,197.91,7.07483536]
[1735179590639,28.02680721,197.96,197.92,2.5289]
[1735179591638,28.02680721,197.96,197.94,2.5286]
[1735179591840,28.02680721,197.96,197.93,7.07483536]
[1735179592038,28.02680721,197.96,197.86,3.4]
[1735179592241,2.5287,197.94,197.9,7.07483536]
[1735179592550,28.02680721,197.97,197.92,7.07483536]
[1735179592836,21.93248769,197.98,197.97,2.5283]
[1735179593359,84.25322382,198.0,197.97,2.5283]
[1735179593360,29.69238479,198.0,197.97,1.01025407]
[1735179593643,175.52754964,198.03,198.0,2.5279]
[1735179594043,280.84407942,198.08,197.99,7.07483536]
[1735179594044,7.02953597,198.08,198.06,2.527]
[1735179594244,7.02953597,198.08,198.05,7.07483536]
[1735179594843,3.1489,198.12,198.05,7.07483536]
[1735179595041,2.5268,198.09,198.05,7.07483536]
[1735179595541,3.1489,198.12,198.07,7.07483536]
[1735179595542,1.5764,198.12,198.07,7.07483536]
[1735179595944,1.5764,198.12,198.08,2.5268]
[1735179596339,1.5764,198.12,198.07,7.07483536]
[1735179597144,3.4,198.17,198.03,3.4]
[1735179597337,7.07483536,198.15,198.07,7.07483536]
[1735179597533,1.5512,198.14,198.07,7.07483536]
[1735179598438,2.5265,198.11,198.07,7.07483536]
[1735179600542,1.5512,198.14,198.07,7.07483536]
[1735179600741,7.07483536,198.11,198.02,2.5275]
[1735179600939,7.07483536,198.11,198.03,7.07483536]
[1735179601141,2.5267,198.09,198.03,7.07483536]
[1735179601345,1.5512,198.14,198.05,7.07483536]
[1735179601538,8.62603536,198.14,198.07,7.07483536]
[1735179601846,7.07483536,198.12,198.05,7.07483536]
[1735179603241,2.5264,198.12,198.07,7.07483536]
[1735179603941,1.5512,198.14,198.09,7.07483536]
[1735179604143,3.1648,198.16,198.04,3.4]
[1735179604446,10.23963536,198.16,198.09,7.07483536]
[1735179605443,2.5261,198.14,198.09,9.60153536]
[1735179606437,12.76563536,198.16,198.11,2.5264]
[1735179606636,1.6246,198.16,198.11,7.07483536]
[1735179607952,2.5256,198.19,198.11,7.07483536]
[1735179608139,7.07483536,198.21,198.13,7.07483536]
[1735179608343,1.5187,198.22,198.15,7.07483536]
[1735179608549,1.5187,198.22,198.17,2.5257]
[1735179609046,48.40762137,198.36,198.19,7.07483536]
[1735179609243,7.07483536,198.28,198.19,7.07483536]
[1735179609545,3.2753,198.31,198.19,7.07483536]
[1735179609747,7.07483536,198.27,198.19,7.07483536]
[1735179609947,2.5247,198.25,198.2,2.5253]
[1735179610149,2.5247,198.25,198.17,14.44541853]
[1735179610543,2.5245,198.27,198.22,2.525]
[1735179611052,14.28071853,198.31,198.17,14.44541853]
[1735179612450,3.2753,198.31,198.2,11.00541853]
[1735179613146,3.2753,198.31,198.25,2.5247]
[1735179614046,5.7993,198.31,198.26,2.5246]
[1735179615351,3.2753,198.31,198.2,11.00541853]
[1735179615853,14.28071853,198.31,198.15,11.00541853]
[1735179616151,2.5252,198.22,198.17,2.5257]
[1735179617647,2.5252,198.22,198.18,2.5256]
[1735179617857,3.44,198.29,198.18,2.5256]
[1735179618653,3.44,198.29,198.19,2.5254]
[1735179618853,3.44,198.29,198.15,11.00541853]
[1735179619152,3.44,198.29,198.18,11.00541853]
[1735179619153,2.5247,198.26,198.18,11.00541853]
[1735179619552,2.5247,198.26,198.21,2.5252]
[1735179619952,2.5244,198.27,198.2,2.5252]
[1735179620150,2.5244,198.27,198.18,11.00541853]
[1735179620651,2.5244,198.27,198.22,2.525]
[1735179621253,11.00541853,198.28,198.14,6.92892902]
[1735179621453,1.5915,198.26,198.14,17.93434755]
[1735179621756,1.5915,198.26,198.17,11.00541853]
[1735179622452,4.1161,198.26,198.17,11.00541853]
[1735179623050,1.5915,198.26,198.2,11.00541853]
[1735179623543,4.1161,198.26,198.21,2.5252]
[1735179623951,6.7153,198.31,198.2,11.00541853]
[1735179624150,2.5242,198.3,198.25,2.5247]
[1735179624349,6.7153,198.31,198.2,11.00541853]
[1735179624553,6.7153,198.31,198.22,2.5251]
[1735179624857,17.72071853,198.31,198.17,6.92892902]
[1735179625059,11.00541853,198.28,198.17,9.45452902]
[1735179625258,1.5933,198.27,198.17,6.92892902]
[1735179625557,2.5255,198.19,198.17,6.92892902]
[1735179626355,2.5255,198.19,198.14,28.12033926]
[1735179626659,3.44,198.25,198.15,2.5258]
[1735179626955,2.5252,198.21,198.16,2.5258]
[1735179627261,3.44,198.25,198.15,11.17297847]
[1735179628156,2.525,198.23,198.18,2.5255]
[1735179628361,3.44,198.25,198.17,6.92892902]
[1735179628661,1.5933,198.27,198.17,6.92892902]
[1735179629161,1.5933,198.27,198.17,31.56033926]
[1735179629556,2.5248,198.24,198.19,2.5254]
[1735179629958,2.5248,198.24,198.19,9.45432902]
[1735179630460,2.5246,198.26,198.21,2.5252]
[1735179630654,1.5933,198.27,198.19,6.92892902]
[1735179630858,2.5252,198.22,198.2,49.33612679]
[1735179631156,1.5933,198.27,198.2,49.33612679]
[1735179631757,1.5933,198.27,198.18,28.12033926]
[1735179632461,2.5251,198.22,198.19,4.24647174]
[1735179633361,2.5251,198.22,198.18,28.12033926]
[1735179634563,2.5251,198.22,198.18,30.64583926]
[1735179634861,1.5933,198.27,198.19,11.00541853]
[1735179635058,5.0446,198.44,198.25,11.00541853]
[1735179635257,2.5235,198.35,198.25,14.44541853]
[1735179635457,14.15321853,198.38,198.25,14.44541853]
[1735179636263,14.15321853,198.38,198.26,2.5245]
[1735179636663,14.15321853,198.38,198.25,14.44541853]
[1735179636863,2.5237,198.33,198.28,2.5243]
[1735179637463,2.5237,198.33,198.27,6.92892902]
[1735179637464,2.5235,198.34,198.29,2.5241]
[1735179637662,2.5235,198.34,198.29,13.70399532]
[1735179638463,3.1478,198.38,198.29,11.17989532]
[1735179638762,3.1478,198.38,198.3,4.2509663]
[1735179640060,3.1478,198.38,198.32,6.92892902]
[1735179640463,2.5233,198.36,198.32,6.92892902]
[1735179640964,2.5229,198.4,198.34,11.00541853]
[1735179641164,1.5251,198.43,198.34,11.00541853]
[1735179641862,2.5225,198.42,198.37,2.5231]
[1735179642075,3.0146,198.45,198.34,11.00541853]
[1735179642271,1.5465,198.5,198.4,11.00541853]
[1735179642968,3.0146,198.51,198.4,11.00541853]
[1735179643165,2.5219,198.47,198.4,11.00541853]
[1735179643464,3.0146,198.51,198.4,11.00541853]
[1735179643669,7.24505376,198.59,198.46,11.00541853]
[1735179643864,11.00541853,198.63,198.49,11.00541853]
[1735179644070,2.5205,198.58,198.52,11.00541853]
[1735179644465,210.63305956,198.79,198.55,11.00541853]
[1735179644664,16.63303821,198.75,198.62,2.5199]
[1735179644864,4.8022,198.75,198.64,11.00541853]
[1735179645060,11.00541853,198.74,198.52,11.00541853]
[1735179645267,11.00541853,198.68,198.55,11.00541853]
[1735179645663,11.00541853,198.68,198.55,14.42541853]
[1735179646064,11.00541853,198.68,198.63,6.92892902]
[1735179646964,11.00541853,198.68,198.54,2.5209]
[1735179650371,11.00541853,198.71,198.58,11.00541853]
[1735179650571,11.00541853,198.74,198.61,11.00541853]
[1735179650768,14.42541853,198.74,198.61,11.00541853]
[1735179650962,14.42541853,198.74,198.61,16.94551853]
[1735179651161,14.42541853,198.74,198.61,14.42541853]
[1735179651367,11.00541853,198.74,198.61,14.42541853]
[1735179651769,4.8022,198.75,198.61,14.42541853]
[1735179651970,11.00541853,198.9,198.61,14.42541853]
[1735179651971,11.00541853,198.81,198.67,11.00541853]
[1735179652169,14.42541853,198.81,198.67,14.42541853]
[1735179652372,1.5151,198.8,198.67,14.42541853]
[1735179652769,2.5183,198.76,198.67,14.42541853]
[1735179653169,1.5151,198.8,198.67,14.42541853]
[1735179654367,2.5182,198.77,198.68,2.5192]
[1735179655572,2.5182,198.77,198.7,11.00541853]
[1735179655769,2.5182,198.76,198.7,11.00541853]
[1735179657075,2.5181,198.78,198.7,13.52431853]
[1735179657477,2.5181,198.78,198.7,11.00541853]
[1735179657672,4.0329,198.8,198.7,11.00541853]
[1735179657880,1.5151,198.8,198.7,11.00541853]
[1735179658176,1.5151,198.8,198.67,14.42541853]
[1735179658371,1.5151,198.8,198.67,16.94461853]
[1735179659273,11.00541853,198.78,198.52,22.12892902]
[1735179659474,11.00541853,198.75,198.62,11.00541853]
[1735179659675,3.1149,198.74,198.62,14.42541853]
[1735179660177,2.519,198.7,198.63,2.5198]
[1735179660383,3.1149,198.74,198.62,14.42541853]
[1735179660568,3.1149,198.74,198.65,11.00541853]
[1735179660774,2.5187,198.72,198.65,13.52501853]
[1735179661072,3.1149,198.74,198.65,11.00541853]
[1735179661273,2.5192,198.69,198.62,14.42541853]
[1735179661679,3.1149,198.74,198.62,11.00541853]
[1735179662477,11.00541853,198.73,198.59,11.00541853]
[1735179662868,2.5198,198.63,198.59,11.00541853]
[1735179663269,11.00541853,198.7,198.56,11.00541853]
[1735179663581,11.00541853,198.67,198.52,11.00541853]
[1735179663773,11.00541853,198.61,198.46,28.12033926]
[1735179663977,8.1782,198.6,198.47,11.00541853]
[1735179664280,8.1782,198.6,198.44,3.42]
[1735179664281,11.00541853,198.58,198.44,11.00541853]
[1735179664474,7.99457396,198.58,198.44,11.00541853]
[1735179664979,2.5218,198.48,198.44,11.00541853]
[1735179666272,2.5218,198.48,198.41,2.5226]
[1735179666775,4.7582,198.6,198.44,17.5654878]
[1735179666971,4.7582,198.6,198.48,17.5654878]
[1735179667486,2.5205,198.58,198.48,17.5654878]
[1735179668181,1.5354,198.6,198.49,2.5216]
[1735179668381,1.5354,198.6,198.48,17.5654878]
[1735179669180,2.5216,198.5,198.44,17.5654878]
[1735179669375,1.6111,198.59,198.44,17.5654878]
[1735179669680,2.521,198.55,198.49,2.5216]
[1735179669882,1.5159,198.58,198.44,17.5654878]
[1735179670778,1.5159,198.58,198.48,17.5654878]
[1735179670978,20.1961,198.78,198.52,17.5654878]
[1735179671180,3.2026,198.77,198.6,17.5654878]
[1735179671482,3.2026,198.77,198.61,3.52]
[1735179671677,3.2026,198.77,198.64,17.5654878]
[1735179673075,1.6206,198.77,198.64,17.5654878]
[1735179674482,5.119,198.83,198.68,17.5654878]
[1735179674789,1.599,198.83,198.69,3.52]
[1735179675286,2.5177,198.8,198.73,2.5185]
[1735179675485,1.599,198.83,198.69,3.52]
[1735179676484,2.5179,198.79,198.71,2.5187]
[1735179677186,2.5179,198.79,198.72,2.5187]
[1735179678286,2.5181,198.77,198.69,3.52]
[1735179678481,1.599,198.83,198.69,6.77544477]
[1735179678785,2.5186,198.73,198.69,6.77544477]
[1735179679179,17.5654878,198.81,198.69,6.77544477]
[1735179679378,17.5654878,198.81,198.65,6.77544477]
[1735179679885,17.5654878,198.81,198.69,2.5191]
[1735179680083,17.5654878,198.81,198.65,6.77544477]
[1735179680287,2.5184,198.75,198.67,2.5192]
[1735179680785,2.5184,198.75,198.68,2.5192]
[1735179680988,2.5181,198.77,198.65,24.34093257]
[1735179681178,5.119,198.83,198.65,24.34093257]
[1735179681378,5.119,198.83,198.71,2.5188]
[1735179682689,2.518,198.78,198.71,2.5188]
[1735179683488,2.518,198.78,198.72,2.5187]
[1735179684889,2.5177,198.8,198.72,2.5187]
[1735179685089,5.119,198.83,198.72,2.5187]
[1735179685288,5.119,198.83,198.65,17.5654878]
[1735179685593,17.5654878,198.81,198.68,2.5192]
[1735179686094,5.119,198.83,198.69,17.5654878]
[1735179687496,2.518,198.78,198.72,2.5187]
[1735179688792,2.5181,198.77,198.72,2.5187]
[1735179689897,2.5179,198.79,198.74,2.5184]
[1735179692397,1.599,198.83,198.72,2.5186]
[1735179692595,1.599,198.83,198.67,3.52]
[1735179692596,17.5654878,198.82,198.67,3.52]
[1735179692796,17.5654878,198.82,198.65,17.5654878]
[1735179692993,17.5654878,198.79,198.63,6.77544477]
[1735179693199,3.52,198.78,198.62,10.29544477]
[1735179693800,1.6416,198.77,198.62,10.29544477]
[1735179693990,2.5187,198.73,198.68,2.5192]
[1735179694190,2.5187,198.73,198.64,17.5654878]
[1735179694591,2.5187,198.73,198.67,2.5193]
[1735179695293,1.6416,198.77,198.67,2.5193]
[1735179695498,1.6416,198.77,198.64,17.5654878]
[1735179695695,1.5745,198.76,198.64,17.5654878]
[1735179696594,2.5192,198.68,198.6,17.5654878]
[1735179697395,2.5192,198.68,198.63,2.5198]
[1735179699400,2.5192,198.68,198.6,21.0854878]
[1735179699601,2.5192,198.68,198.64,2.5197]
[1735179700000,2.519,198.7,198.63,2.5198]
[1735179700201,2.519,198.7,198.6,21.0854878]
[1735179700401,1.6161,198.75,198.6,21.0854878]
[1735179700701,2.5192,198.68,198.64,2.5197]
[1735179700904,1.6161,198.75,198.6,21.0854878]
[1735179701197,2.519,198.7,198.6,21.0854878]
[1735179701402,2.519,198.7,198.63,2.5198]
[1735179701607,3.52,198.71,198.53,1.00740442]
[1735179701804,21.0854878,198.71,198.54,2.521]
[1735179702003,0.8253665,198.7,198.53,1.00740442]
[1735179702898,0.8253665,198.7,198.53,3.52850442]
[1735179703105,3.52,198.69,198.53,1.00740442]
[1735179703603,3.52,198.69,198.56,17.5654878]
[1735179704203,2.5196,198.65,198.59,2.5203]
[1735179704400,3.52,198.69,198.56,17.5654878]
[1735179705407,2.5199,198.63,198.56,20.0861878]
[1735179706603,2.52,198.62,198.56,17.5654878]
[1735179707605,3.52,198.69,198.56,17.5654878]
[1735179707811,0.82544454,198.68,198.53,1.00740442]
[1735179708009,0.82549086,198.68,198.53,1.00740442]
[1735179708213,2.5206,198.58,198.53,1.00740442]
[1735179708413,2.5206,198.58,198.52,10.9668315]
[1735179708612,1.5059,198.65,198.55,10.9668315]
[1735179708808,2.5201,198.61,198.55,13.4876315]
[1735179709214,2.5196,198.65,198.59,2.5203]
[1735179709405,3.52,198.66,198.58,10.9668315]
[1735179709909,2.5199,198.63,198.58,10.9668315]
[1735179710212,3.52,198.66,198.58,10.9668315]
[1735179711013,2.5196,198.65,198.59,2.5203]
[1735179711215,1.5322,198.67,198.58,10.9668315]
[1735179711612,2.5195,198.66,198.61,10.9668315]
[1735179711813,3.52,198.72,198.61,10.9668315]
[1735179712013,3.52,198.72,198.64,10.9668315]
[1735179712214,3.52,198.72,198.62,17.52649378]
[1735179712517,2.5191,198.69,198.62,20.04629378]
[1735179712713,2.5191,198.69,198.62,17.52649378]
[1735179713217,2.5193,198.68,198.62,17.52649378]
[1735179714517,2.5193,198.68,198.63,2.5198]
[1735179714717,1.5129,198.74,198.62,17.52649378]
[1735179714918,2.5191,198.7,198.62,17.52649378]
[1735179715118,1.5129,198.74,198.62,17.52649378]
[1735179715318,1.5129,198.74,198.66,2.5194]
[1735179719521,1.5129,198.74,198.63,2.5197]
[1735179720326,1.5129,198.74,198.62,17.52649378]
[1735179720723,1.5129,198.74,198.58,17.52649378]
[1735179720928,1.5129,198.74,198.6,2.5202]
[1735179722125,1.5129,198.74,198.61,2.5201]
[1735179723921,1.5129,198.74,198.6,2.5202]
[1735179724120,17.52649378,198.71,198.54,17.52649378]
[1735179724426,2.5194,198.67,198.54,17.52649378]
[1735179724621,3.52,198.7,198.64,2.5196]
[1735179724813,3.52,198.7,198.59,3.44]
[1735179725018,2.5189,198.71,198.59,3.44]
[1735179725221,1.5129,198.74,198.62,17.52649378]
[1735179725623,2.5195,198.67,198.63,2.5198]
[1735179726721,1.5129,198.74,198.64,2.5196]
[1735179726925,1.5129,198.74,198.62,17.52649378]
[1735179727328,2.5187,198.7,198.65,2.5193]
[1735179727525,55.1550164,198.84,198.66,20.96649378]
[1735179727721,3.0366,198.8,198.7,17.52649378]
[1735179727918,3.0366,198.8,198.7,20.96649378]
[1735179728329,1.5061,198.8,198.7,20.96649378]
[1735179728530,1.6015,198.83,198.7,20.96649378]
[1735179728830,2.5172,198.82,198.7,20.96649378]
[1735179729426,2.517,198.84,198.78,2.5176]
[1735179729625,3.0366,198.86,198.74,17.52649378]
[1735179730029,2.5176,198.79,198.73,2.5182]
[1735179730225,3.0366,198.86,198.7,20.96649378]
[1735179730524,0.82466593,198.85,198.7,20.96649378]
[1735179731030,2.5176,198.79,198.72,2.5183]
[1735179731223,2.5176,198.79,198.7,20.96649378]
[1735179732528,2.5176,198.79,198.73,2.5183]
[1735179733934,3.0366,198.86,198.7,20.96649378]
[1735179734135,2.5174,198.81,198.75,2.5181]
[1735179734537,13.9800751,198.86,198.73,10.9434751]
[1735179735326,0.82463666,198.85,198.73,10.9434751]
[1735179735530,10.9434751,198.83,198.7,10.9434751]
[1735179735730,1.5869,198.82,198.7,13.4621751]
[1735179735930,1.5869,198.82,198.7,10.9434751]
[1735179736131,10.9434751,198.8,198.68,2.5189]
[1735179736634,1.5869,198.82,198.74,2.5182]
[1735179736829,1.5869,198.82,198.73,10.9434751]
[1735179737034,2.5173,198.82,198.73,14.3834751]
[1735179737233,6.4766,198.86,198.73,14.3834751]
[1735179737835,3.0366,198.86,198.73,14.3834751]
[1735179740438,2.5172,198.82,198.77,2.5178]
[1735179741534,2.5173,198.81,198.73,14.3834751]
[1735179742439,2.5173,198.81,198.76,2.5179]
[1735179743038,2.5176,198.79,198.74,2.5182]
[1735179743233,10.9434751,198.8,198.6,10.9434751]
[1735179743438,10.9434751,198.8,198.66,10.9434751]
[1735179743642,2.5181,198.75,198.7,2.5186]
[1735179744544,2.5181,198.75,198.66,10.9434751]
[1735179744840,3.44,198.84,198.72,10.9434751]
[1735179745042,140.42203971,198.98,198.81,10.9434751]
[1735179745237,2.5163,198.89,198.82,3.44]
[1735179745633,1.5495,198.95,198.82,3.44]
[1735179746736,1.5495,198.95,198.84,2.5169]
[1735179747745,1.5495,198.95,198.84,13.4603751]
[1735179748239,1.5495,198.95,198.82,20.92954912]
[1735179748240,2.5162,198.91,198.82,20.92954912]
[1735179748641,1.5495,198.95,198.82,20.92954912]
[1735179748845,2.5159,198.93,198.86,2.5167]
[1735179749138,1.6084,198.97,198.82,20.92954912]
[1735179749343,2.5157,198.94,198.87,2.5165]
[1735179749545,2.5157,198.94,198.86,17.48954912]
[1735179750643,2.5158,198.93,198.86,17.48954912]
[1735179750842,1.6084,198.97,198.86,17.48954912]
[1735179751035,2.5157,198.94,198.86,20.00614912]
[1735179751240,1.6084,198.97,198.86,17.48954912]
[1735179751746,2.5157,198.95,198.86,17.48954912]
[1735179751945,1.6084,198.97,198.86,17.48954912]
[1735179753456,2.5158,198.93,198.88,2.5164]
[1735179755050,2.5158,198.93,198.86,17.48954912]
[1735179755051,2.5157,198.94,198.89,2.5163]
[1735179755246,2.5157,198.94,198.89,5.9363]
[1735179755644,3.2307,199.01,198.9,17.48954912]
[1735179756448,2.5154,198.97,198.92,2.5159]
[1735179756953,2.5156,198.95,198.91,3.42]
[1735179757150,2.5156,198.95,198.9,3.42]
[1735179758348,3.42,198.99,198.85,2.5167]
[1735179758548,19.14344912,198.98,198.81,17.48954912]
[1735179758851,2.5158,198.93,198.85,2.5168]
[1735179759051,1.4993,198.97,198.81,17.48954912]
[1735179759549,1.4998,198.96,198.81,17.48954912]
[1735179759755,2.516,198.92,198.85,2.5168]
[1735179759950,1.4998,198.96,198.85,5.9368]
[1735179760755,2.5158,198.93,198.85,5.9368]
[1735179760956,1.4998,198.96,198.85,5.9368]
[1735179761552,2.5163,198.9,198.85,5.9368]
[1735179761754,1.4998,198.96,198.85,5.9368]
[1735179762951,1.4998,198.96,198.85,3.42]
[1735179763549,2.5162,198.9,198.85,5.9367]
[1735179764757,2.5162,198.9,198.85,2.5167]
[1735179765057,2.5163,198.89,198.85,5.9367]
[1735179765857,2.5163,198.89,198.85,3.42]
[1735179766354,18.98934912,198.96,198.8,3.42]
[1735179766756,2.5172,198.82,198.78,17.48954912]
[1735179766960,3.42,198.91,198.78,17.48954912]
[1735179767154,2.5167,198.86,198.76,3.42]
[1735179767355,1.519,198.9,198.78,17.48954912]
[1735179767555,3.42,198.95,198.78,17.48954912]
[1735179767756,2.5164,198.88,198.82,17.48954912]
[1735179767959,2.5164,198.88,198.83,3.42]
[1735179768161,2.5164,198.88,198.83,14.35193073]
[1735179768460,3.42,198.95,198.83,14.35193073]
[1735179768758,3.42,198.95,198.83,2.517]
[1735179768955,3.42,198.95,198.84,10.93193073]
[1735179769656,10.93193073,198.91,198.77,3.42]
[1735179769957,10.93193073,198.91,198.78,10.93193073]
[1735179770157,10.93193073,198.91,198.78,13.44953073]
[1735179770158,2.5171,198.83,198.78,13.44953073]
[1735179771252,3.42,198.95,198.78,10.93193073]
[1735179771456,10.93193073,198.92,198.78,10.93193073]
[1735179772154,10.93193073,198.92,198.78,13.44963073]
[1735179772155,2.5172,198.83,198.78,13.44963073]
[1735179772753,10.93193073,198.89,198.78,10.93193073]
[1735179772954,3.0903,198.88,198.76,3.42]
[1735179773459,2.5176,198.8,198.75,13.45003073]
[1735179773757,2.5177,198.78,198.75,10.93193073]
[1735179773956,1.5628,198.87,198.75,10.93193073]
[1735179773957,10.93193073,198.86,198.75,10.93193073]
[1735179774157,10.93193073,198.86,198.72,10.93193073]
[1735179774354,10.93193073,198.83,198.69,10.93193073]
[1735179774662,10.93193073,198.8,198.69,10.93193073]
[1735179774862,2.5179,198.76,198.69,10.93193073]
[1735179775055,6.5822,198.79,198.69,10.93193073]
[1735179775561,2.5184,198.73,198.69,10.93193073]
[1735179775960,2.5185,198.72,198.69,10.93193073]
[1735179776661,6.5822,198.79,198.69,10.93193073]
[1735179777462,6.5822,198.79,198.72,2.5184]
[1735179777764,3.1622,198.79,198.72,2.5184]
[1735179778458,2.5177,198.78,198.72,2.5184]
[1735179779056,2.5177,198.78,198.72,13.45033073]
[1735179779563,3.1622,198.79,198.72,13.45033073]
[1735179779758,2.5178,198.77,198.72,13.45033073]
[1735179782057,2.5182,198.74,198.7,2.5186]